Cogmind - Beta 17.1 @@@ ROGUE MODE // 2026.09.03 @ 01:10:29 Player: SnailSD Result: Self-destructed Performance ------------- Evolutions (2) 1000 Regions Visited (5) 1000 Robots Destroyed (31) 155 Value Destroyed (711) 711 Prototype IDs (2) 40 Alien Tech Used (0) 0 Bonus (0) 0 TOTAL SCORE: 2906 Bonus ------- None Cogmind --------- Core Integrity 422/550 Matter 295/300 Energy 124/125 System Corruption 0% Temperature Cool (99) Movement Treading (160) Location -8/Materials Parts ------- > --- POWER (1) -------- Light Ion Engine > --- PROPULSION (2) --- Light Treads Light Treads > --- UTILITY (6) ------ Large Storage Unit Sensor Array Signal Interpreter Improved Terrain Scanner > --- WEAPON (2) ------- Ion Cannon Light Assault Rifle > --- INVENTORY (15) --- Nuclear Core Light Treads Wheel Large Matter Pod (150) Insulated Plating EM Pulse Gun EM Pulse Gun Heavy Assault Rifle Datajack Hammer Peak State ------------ > --- POWER ------------ Improved Ion Engine > --- PROPULSION ------- Light Treads Light Treads > --- UTILITY ---------- Heat Sink Large Storage Unit Sensor Array Signal Interpreter Improved Terrain Scanner Insulated Plating > --- WEAPON ----------- Ion Cannon Light Assault Rifle > --- INVENTORY -------- Light Ion Engine Light Treads Light Treads Wheel Large Matter Pod Insulated Plating EM Pulse Gun EM Pulse Gun Heavy Assault Rifle Datajack Hammer [Rating: 19] Favorites ----------- Power Ion Engine Engine Ion Engine Propulsion Light Treads Treads Light Treads Utility Large Storage Unit Device Sensor Array Storage Large Storage Unit Processor Signal Interpreter Protection Insulated Plating Weapon Light Assault Rifle Energy Cannon Beam Cannon Ballistic Gun Light Assault Rifle Impact Weapon Hammer Special Melee Weapon Datajack Build | -11 -10 -10 -10 -9 -8 ------- Run | Yrd Mat Min Exi Min Mat Slots Evolved 4 | . . . . . 4 Power . | . . . . . . Propulsion . | . . . . . . Utility 4 | . . . . . 4 Weapon . | . . . . . . Parts Attached 22 | 6 5 . 1 . 10 Power 3 | 1 . . . . 2 Engine 3 | 1 . . . . 2 Core . | . . . . . . Reactor . | . . . . . . Propulsion 5 | 2 . . . . 3 Treads 5 | 2 . . . . 3 Leg . | . . . . . . Wheel . | . . . . . . Hover . | . . . . . . Flight . | . . . . . . Utility 9 | 2 3 . 1 . 3 Device 4 | 1 1 . . . 2 Storage 3 | 1 2 . . . . Processor 1 | . . . 1 . . Hackware . | . . . . . . Protection 1 | . . . . . 1 Artifact . | . . . . . . Weapon 5 | 1 2 . . . 2 Energy Gun . | . . . . . . Energy Cannon 2 | . 1 . . . 1 Ballistic Gun 1 | 1 . . . . . Ballistic Cannon . | . . . . . . Launcher . | . . . . . . Special Weapon . | . . . . . . Impact Weapon 1 | . 1 . . . . Slashing Weapon . | . . . . . . Piercing Weapon . | . . . . . . Special Melee Weapon 1 | . . . . . 1 Unidentified Prototypes . | . . . . . . Parts Lost 9 | . 1 . . . 8 Power 2 | . . . . . 2 Propulsion 3 | . . . . . 3 Utility 3 | . 1 . . . 2 Weapon 1 | . . . . . 1 Highest Loss Streak 7 | . 1 . . . 7 To Critical Strikes . | . . . . . . Average Backups 10 | 6 10 13 13 13 11 Power 1 | 1 1 2 2 2 1 Propulsion 3 | 2 2 4 4 4 3 Utility 2 | . 2 4 4 4 1 Weapon 3 | 2 3 3 3 3 3 Tool/Special . | . . . . . . Unused Backups 11 | 1 3 . . . 7 Power . | . . . . . . Propulsion 5 | 1 2 . . . 2 Utility 2 | . . . . . 2 Weapon 4 | . 1 . . . 3 Tool/Special . | . . . . . . Average Slot Usage (%) 96 | . 95 100 100 100 96 Engine 13 | . 14 14 14 14 9 Treads 26 | . 28 28 28 28 18 Device 13 | . 11 14 7 . 25 Storage 13 | . 14 14 14 14 9 Processor 2 | . . . 6 14 9 Protection 1 | . . . . . 6 Energy Cannon 10 | . 8 14 14 14 9 Ballistic Gun 13 | . 14 14 14 14 8 Impact Weapon 2 | . 3 . . . . Peak Build Rating 19 | 6 8 8 8 8 19 Average Rating 8 | 3 7 8 8 8 15 On Entrance 6 | . 6 8 8 8 8 Avg Prop Armor Cover (%) . | . . . . . . Naked Turns . | . . . . . . Heaviest Build 36 | 12 30 30 30 29 36 Greatest Support 40 | 40 40 40 40 40 40 Greatest Overweight (x) . | . . . . . . Average Overweight (x) . | . . . . . . Largest Inventory Capacity 15 | 8 15 15 15 15 15 Average Capacity 12 | 7 11 15 15 15 15 Most Carried 14 | 8 13 13 13 13 14 Average Carried 10 | 6 10 13 13 13 11 Final Capacity 15 | 8 15 15 15 15 15 Final Carried 13 | 7 13 13 13 13 10 Class Distribution -------------------- 85% | Mutant 14% | Skirmisher Dominant Class ---------------- Mutant | -10/Materials Mutant | -10/Mines Mutant | -10/Exiles Mutant | -9/Mines Skirmisher | -8/Materials Resources | -11 -10 -10 -10 -9 -8 ----------- Run | Yrd Mat Min Exi Min Mat Matter Collected 715 | 287 295 . . . 133 Remotely . | . . . . . . Salvage Created 965 | 150 494 . . . 321 Parts 67 | 13 42 . . . 12 Haulers Intercepted 2 | . 2 . . . . Recyclers Shooed . | . . . . . . Parts Field Recycled . | . . . . . . Retrieved Matter . | . . . . . . Parts Self-Destructed . | . . . . . . Prevented . | . . . . . . Parts Restored . | . . . . . . Kills | -11 -10 -10 -10 -9 -8 ------- Run | Yrd Mat Min Exi Min Mat Combat Hostiles Destroyed 20 | . 14 . . . 6 Guns 9 | . 5 . . . 4 Cannons 11 | . 9 . . . 2 Classes Destroyed 10 | 3 5 . . . 2 Worker 3 | 3 . . . . . Tunneler 2 | 2 . . . . . Hauler 2 | . 2 . . . . Recycler 1 | 1 . . . . . Operator 2 | . 2 . . . . Watcher 1 | . 1 . . . . Swarmer 8 | . 8 . . . . Grunt 9 | . 6 . . . 3 Sentry 2 | . . . . . 2 Hunter 1 | . . . . . 1 Best Kill Streak 4 | 2 4 . . . 4 Combat Bots Only 4 | . 3 . . . 4 Max Kills in Single Turn 1 | 1 1 . . . 1 Gunslinging . | . . . . . . Exploded . | . . . . . . Melee . | . . . . . . Uniques/NPCs Destroyed . | . . . . . . Combat | -11 -10 -10 -10 -9 -8 -------- Run | Yrd Mat Min Exi Min Mat Hostile Shots Fired 159 | . 63 . . 17 79 Missed 51 | . 18 . . 8 25 Hits 108 | . 45 . . 9 54 Projectile 108 | . 45 . . 9 54 Critical Strikes 1 | . . . . . 1 Damage Taken 1408 | . 431 . . 77 900 Core 190 | . 55 . . 7 128 Absorbed by Shields . | . . . . . . Core Remaining (%) 87 | 100 . . . 75 . Volleys Fired 149 | 47 70 . . . 32 Largest 2 | 1 2 . . . 2 Hottest 80 | 20 80 . . . 80 Shots Fired 232 | 47 121 . . . 64 Gun 149 | 47 70 . . . 32 Cannon 83 | . 51 . . . 32 Launcher . | . . . . . . Special . | . . . . . . Kinetic 149 | 47 70 . . . 32 Thermal 83 | . 51 . . . 32 Explosive . | . . . . . . Electromagnetic . | . . . . . . Robot Hit Streak 11 | 7 6 . . . 11 Robot Miss Streak 7 | 2 7 . . . 5 Penetration Max . | . . . . . . Secondary Targets . | . . . . . . Shots Hit Robots 133 | 30 60 . . . 43 Core Hits 57 | 12 28 . . . 17 Critical Kills 1 | . 1 . . . . Critical Parts Destroyed 1 | . . . . . 1 Critical Strikes 2 | . 1 . . . 1 Destroy 2 | . 1 . . . 1 Melee Attacks 3 | . 2 . . . 1 Impact 3 | . 2 . . . 1 Slashing . | . . . . . . Piercing . | . . . . . . Sneak Attacks . | . . . . . . Combat Hostiles . | . . . . . . Follow-up Attacks . | . . . . . . Damage Inflicted 1716 | 250 826 . . . 640 Guns 651 | 250 232 . . . 169 Cannons 1054 | . 594 . . . 460 Explosions . | . . . . . . Melee . | . . . . . . Ramming 11 | . . . . . 11 Kinetic 651 | 250 232 . . . 169 Thermal 1054 | . 594 . . . 460 Explosive . | . . . . . . Electromagnetic . | . . . . . . Impact . | . . . . . . Slashing . | . . . . . . Piercing . | . . . . . . Highest Corruption . | . . . . . . Average Corruption . | . . . . . . Corruption Purged . | . . . . . . Corruption Blocked . | . . . . . . Overload Shots . | . . . . . . Overflow Damage 13 | . 5 . . . 8 Projectiles 13 | . 5 . . . 8 Explosions . | . . . . . . Melee . | . . . . . . Knockbacks . | . . . . . . Impact . | . . . . . . Kinetic . | . . . . . . Secondary . | . . . . . . Self-Inflicted Damage . | . . . . . . Shots . | . . . . . . Rammed 2 | . . . . . 2 Targets Rammed 2 | . . . . . 2 Kicked . | . . . . . . Crushed . | . . . . . . Highest Temperature 188 | . 188 . . . 116 Average Temperature 50 | . 58 . . . 30 Received Heat Transfer 402 | . 114 . . . 288 Siege Activations . | . . . . . . Martial Activations . | . . . . . . Shielding Activations . | . . . . . . Robots Disrupted . | . . . . . . Combat Hostiles . | . . . . . . Robots Corrupted . | . . . . . . Combat Hostiles . | . . . . . . Parts Fried . | . . . . . . Impact Corruptions . | . . . . . . Robots Melted . | . . . . . . Combat Hostiles . | . . . . . . Parts Melted 3 | . 3 . . . . Heat Transferred 2072 | . 1258 . . . 814 Parts Sabotaged . | . . . . . . Parts Stolen . | . . . . . . Parts Stripped . | . . . . . . Power Chain Reactions . | . . . . . . Alert | -11 -10 -10 -10 -9 -8 ------- Run | Yrd Mat Min Exi Min Mat Maximum Alert Level . | . . . . . . Low Security (%) 100 | 100 100 100 . 100 100 Level 1 . | . . . . . . Level 2 . | . . . . . . Level 3 . | . . . . . . Level 4 . | . . . . . . Level 5 . | . . . . . . High Security . | . . . . . . Max Security . | . . . . . . Peak Influence 189 | 10 189 13 . . 36 Initial 13 | . . 13 . . . Average 50 | . 76 2 . . 8 Influence Increases 729 | 30 493 . . . 206 Destroy 0b10 Robot/C 400 | . 280 . . . 120 Destroy 0b10 Robot/NC 55 | 30 25 . . . . Destroy Leader 96 | . 56 . . . 40 Successful Hack 55 | . 26 . . . 29 Disable Machine 75 | . 75 . . . . Destroy Structure 3 | . 1 . . . 2 Partial Spotted 15 | . . . . . 15 Lose Combat Pursuer 30 | . 30 . . . . Influence Decreases 716 | 30 458 35 . . 193 Entered New Map 22 | . . 22 . . . Time Decay 614 | 30 448 13 . . 123 Lost Part 80 | . 10 . . . 70 Squads Dispatched 3 | . 2 . . . 1 Investigation . | . . . . . . Extermination . | . . . . . . Reinforcement 3 | . 2 . . . 1 Assault . | . . . . . . Garrison . | . . . . . . Intercept . | . . . . . . Searches Triggered . | . . . . . . Construction Impeded . | . . . . . . Haulers Reinforced . | . . . . . . Active Scanning Responses . | . . . . . . Cargo Convoy Interrupts . | . . . . . . Stealth | -11 -10 -10 -10 -9 -8 --------- Run | Yrd Mat Min Exi Min Mat Distress Signals 5 | . 2 . . . 3 Communications Jammed . | . . . . . . Distress Signals . | . . . . . . Times Spotted 53 | . 35 . . 4 14 Peak Tracking Total 5 | . 5 . . 4 5 Tactical Retreats 2 | . 2 . . . . Traps | -11 -10 -10 -10 -9 -8 ------- Run | Yrd Mat Min Exi Min Mat Traps Triggered . | . . . . . . Indirectly . | . . . . . . Trap Hack Attempts . | . . . . . . Triggered . | . . . . . . Disarmed . | . . . . . . Reprogrammed . | . . . . . . Reused . | . . . . . . Traps Extracted . | . . . . . . Installed . | . . . . . . Triggered . | . . . . . . Machines | -11 -10 -10 -10 -9 -8 ---------- Run | Yrd Mat Min Exi Min Mat Machines Disabled 5 | . 5 . . . . Max in Single Turn 1 | . 1 . . . . Machines Repaired . | . . . . . . Machines Dismantled . | . . . . . . Machines Sabotaged . | . . . . . . Overloaded Fab Kills . | . . . . . . Hacking | -11 -10 -10 -10 -9 -8 --------- Run | Yrd Mat Min Exi Min Mat Machines Accessed 11 | . 7 . 1 . 3 Terminals 7 | . 5 . . . 2 Fabricators . | . . . . . . Repair Stations . | . . . . . . Recycling Units 3 | . 2 . . . 1 Scanalyzers . | . . . . . . Garrison Access . | . . . . . . Total Hacks 32 | . 19 . 4 . 9 Successful 17 | . 8 . 4 . 5 Failed 15 | . 11 . . . 4 Catastrophic 3 | . 1 . . . 2 Database Lockouts . | . . . . . . Manual 14 | . 12 . . . 2 Terminals 22 | . 14 . . . 8 Fabricators . | . . . . . . Repair Stations . | . . . . . . Recycling Units 6 | . 5 . . . 1 Scanalyzers . | . . . . . . Garrison Access . | . . . . . . Terminal Hacks 12 | . 5 . 4 . 3 Record 4 | . . . 4 . . Robot Analysis 2 | . 2 . . . . Prototype ID Bank 1 | . . . . . 1 Level Access Points 1 | . . . . . 1 Branch Access Points 1 | . 1 . . . . Hauler Manifests 2 | . 1 . . . 1 Zone Layout 1 | . 1 . . . . Fabricator Hacks . | . . . . . . Repair Station Hacks . | . . . . . . Recycling Unit Hacks 3 | . 2 . . . 1 Retrieve Components 3 | . 2 . . . 1 Scanalyzer . | . . . . . . Garrison Access Hacks . | . . . . . . Unauthorized Hacks 2 | . 1 . . . 1 Terminals 2 | . 1 . . . 1 Operators 2 | . 1 . . . 1 Fabricators . | . . . . . . Repair Stations . | . . . . . . Recycling Units . | . . . . . . Scanalyzers . | . . . . . . Garrison Access . | . . . . . . Data Cores Recovered . | . . . . . . Used . | . . . . . . Hacking Detections 8 | . 6 . . . 2 Full Trace Events . | . . . . . . Feedback Events . | . . . . . . Feedback Blocked . | . . . . . . Robot Schematics Acquired . | . . . . . . Robots Built . | . . . . . . Authchips . | . . . . . . Time . | . . . . . . Total Robot Build Rating . | . . . . . . Part Schematics Acquired . | . . . . . . Parts Built . | . . . . . . Authchips . | . . . . . . Time . | . . . . . . Total Part Build Rating . | . . . . . . Part Studies Acquired . | . . . . . . Parts Repaired . | . . . . . . Time . | . . . . . . Parts Recycled . | . . . . . . Recycled Matter . | . . . . . . Retrieved Matter . | . . . . . . Retrieved Components 13 | . 13 . . . . Parts Scanalyzed . | . . . . . . Part Schematics Acquired . | . . . . . . Parts Damaged . | . . . . . . Bothacking | -11 -10 -10 -10 -9 -8 ------------ Run | Yrd Mat Min Exi Min Mat Used RIF Installer . | . . . . . . Robots Hacked . | . . . . . . Non-combat . | . . . . . . Combat . | . . . . . . Robot Hacks Applied . | . . . . . . Relay Couplers Released . | . . . . . . Fabnet Peak Effective % . | . . . . . . Robots Rewired . | . . . . . . Allies Hacked . | . . . . . . Hacks Repelled . | . . . . . . Allies | -11 -10 -10 -10 -9 -8 -------- Run | Yrd Mat Min Exi Min Mat Total Allies . | . . . . . . Largest Group . | . . . . . . Highest-Rated Group . | . . . . . . Highest-Rated Ally . | . . . . . . Total Orders . | . . . . . . Ally Attacks . | . . . . . . Total Damage . | . . . . . . Kills . | . . . . . . Allies Corrupted . | . . . . . . Allies Melted . | . . . . . . Intel | -11 -10 -10 -10 -9 -8 ------- Run | Yrd Mat Min Exi Min Mat Active Infowar (turns) 2017 | 11 1246 138 207 . 415 Sensors 1410 | . 650 138 207 . 415 Terrain 413 | . . . . . 413 Seismic 607 | 11 596 . . . . Robot Analysis Total 2 | . 2 . . . . Derelict Logs Recovered 3 | . . 3 . . . Drone Launches . | . . . . . . Drone Recoveries . | . . . . . . Exploration | -11 -10 -10 -10 -9 -8 ------------- Run | Yrd Mat Min Exi Min Mat Turns Passed 2838 | 330 1551 138 396 8 415 Spaces Moved 1501 | 147 829 87 247 6 185 Core 6 | 6 . . . . . Treads 1495 | 141 829 87 247 6 185 Legs . | . . . . . . Wheels . | . . . . . . Hover . | . . . . . . Flight . | . . . . . . Fastest Speed 50 | 50 160 160 160 160 160 Average Speed 159 | 155 160 160 160 160 160 Slowest Speed 160 | 160 160 160 160 160 160 Overloaded Moves . | . . . . . . Propulsion Burnouts . | . . . . . . Robots Hopped . | . . . . . . Potential Cave-ins . | . . . . . . Cave-ins Triggered . | . . . . . . Exploration Rate (%) 33 | 6 92 20 52 9 24 Regions Visited 5 Branch Regions 3 Pre-discovered Areas 2 | . . 1 1 . . Known Exits Taken 3 | . 1 . 1 1 . Unknown Exits Taken 2 | 1 . 1 . . . Scrap Searched . | . . . . . . Spaces Dug 1 | . . . . . 1 Terrain Destroyed 2 | . . . . . 2 Melee 1 | . . . . . 1 Projectile 1 | . . . . . 1 AOE . | . . . . . . Terrain Rammed . | . . . . . . Walls Destroyed . | . . . . . . Machines Disabled . | . . . . . . Actions | -11 -10 -10 -10 -9 -8 --------- Run | Yrd Mat Min Exi Min Mat Total 1734 | 209 945 86 248 5 241 Wait 25 | . 23 . . . 2 Move 1496 | 146 828 86 246 5 185 Hop . | . . . . . . Pick Up 25 | 9 10 . . . 6 Fast Attach 8 | 5 2 . . . 1 Attach 11 | 1 . . 1 . 9 Detach 1 | . . . 1 . . Swap 7 | . 4 . . . 3 Drop 7 | 1 6 . . . . Fire 149 | 47 70 . . . 32 Melee 3 | . 2 . . . 1 Ram . | . . . . . . Kick . | . . . . . . Crush 2 | . . . . . 2 Escape Stasis . | . . . . . . Rewire . | . . . . . . Trap . | . . . . . . Miscellaneous . | . . . . . . Route ------- -11/Scrapyard -10/Materials (discovered 4 exits: *Mat x3 / *Min) -10/Mines (discovered 2 exits: Mat / *Exi) -10/Exiles (discovered 2 exits: *Min x2) -9/Mines -8/Materials (discovered 3 exits: Fac x3) History --------- Turn | Location | Event 10 | -11/Scrapyard | Discovered new exit (range 16) 331 | -11/Scrapyard | Entered Materials 342 | -10/Materials | Build established: Mutant 650 | -10/Materials | Discovered new exit (range 6) 1035 | -10/Materials | Discovered new exit (range 16) 1221 | -10/Materials | Discovered new exit (range 9) 1836 | -10/Materials | Identified exit to Mines 1882 | -10/Materials | Entered Mines 1887 | -10/Mines | Learned location of Mines (-9) 1902 | -10/Mines | Identified exit to Materials 2002 | -10/Mines | Learned Materials trap positions 2014 | -10/Mines | Deemed a non-threat by the Exiles lab entrance 2014 | -10/Mines | Discovered new exit (range 5) 2020 | -10/Mines | Entered Exiles 2059 | -10/Exiles | Met 8R-AWN 2088 | -10/Exiles | Met EX-HEX 2129 | -10/Exiles | Met EX-BIN 2160 | -10/Exiles | Met EX-DEC 2161 | -10/Exiles | Learned location of Zion (-6) 2206 | -10/Exiles | Discovered new exit (range 14) 2228 | -10/Exiles | Identified exit to Mines 2398 | -10/Exiles | Discovered exit to Mines (range 14) 2416 | -10/Exiles | Entered Mines 2416 | -9/Mines | Discovered new exit (range 6) 2423 | -9/Mines | Identified exit to Materials 2424 | -9/Mines | Entered Materials 2424 | -8/Materials | Evolved 4 slots: Utility x4 2425 | -8/Materials | Loaded intel: 18 trap records 2508 | -8/Materials | Identified exit to Factory 2734 | -8/Materials | Build established: Skirmisher 2824 | -8/Materials | Lost 7 parts (2p2n2u1w) 2839 | -8/Materials | Self-destructed Last Messages --------------- (Destroy). 02792_ Destroyed Carbon-fiber Leg. 02793_ K-01 Serf collects debris. 02793_ Penetrated by Slug. 02793_ Heat Sink destroyed. 02794_ W-25 Informer sends out distress signal. 02796_ Slug penetrates Wall. 02796_ K-01 Serf collects debris. 02799_ H-55 Commando destroyed. 02799_ K-01 Serf collects debris. 02803_ U-05 Engineer builds a Wall. 02805_ K-01 Serf collects debris. 02806_ Acquired 40 matter. 02809_ K-01 Serf collects debris. 02813_ W-25 Informer sends out distress signal. 02813_ K-01 Serf collects debris. 02814_ Acquired Nuclear Core. 02817_ K-01 Serf collects debris. 02819_ Slammed into U-05 Engineer. 02821_ K-01 Serf collects debris. Map ----- +----------------------------------------------------+ | ??????????????????????????????????????????????? | | ??????????????????????????????????????????????? | | ??????????????????????????????????????????????? | | ??????????????????????????????????????????????? | | ??????????????????????????????????????????????? | | ??????????????????????????????????????????????? | | ????????????????????????????^^????????????????? | | ??????????????????????????????????????????????? | | ??????????????????????????????????????????????? | | ??????????????????????????????????????????????? | | ??????????????????????????????????????????????? | | ???????????????????????????# ?????????#???????? | | ???????????????????????? ??????????????#??????? | | ???????????????#?? ???????????????????????????? | | ??????? ??????????????????????#??????????#????? | | ??? ???? ?????????#+###?###??????#???????????? | | ????? ???????????? ? ??????????????????? | | ???????? ????????? ??? ??